fUST/lending_fUST_20251015
["ID","MTS","AMOUNT","RATE_DAILY","PERIOD"]
[391334706,1760541038896,-500.0,0.00027599,2]
[391334707,1760541038906,-500.0,0.00027599,2]
[391334708,1760541038916,-500.0,0.00027599,2]
[391334709,1760541038926,-500.0,0.00027599,2]
[391334710,1760541038936,-500.0,0.00027599,2]
[391334711,1760541038946,-500.0,0.00027599,2]
[391334712,1760541038956,-600.0,0.00027599,2]
[391334713,1760541038967,-500.0,0.00027599,2]
[391334714,1760541038977,-550.0,0.00027599,2]
[391334715,1760541038986,-237.56773204,0.00027599,2]
[391334716,1760541038996,-500.0,0.00027599,2]
[391334717,1760541039005,-500.0,0.00027599,2]
[391334718,1760541039015,-172.47454085,0.00027599,2]
[391334719,1760541039024,-1463.96,0.000276,2]
[391334720,1760541039033,-150.93,0.00027706,15]
[391334721,1760541039043,-151.0,0.00027706,30]
[391334722,1760541039053,-151.0,0.00027706,30]
[391334723,1760541039063,-100.71252255,0.00027706,30]
[391334724,1760541039075,-50.28747745,0.00027706,30]
[391334725,1760541039085,-151.0,0.00027706,2]
[391334726,1760541039096,-151.0,0.00027706,2]
[391334727,1760541039106,-151.0,0.00027706,2]
[391334728,1760541039115,-151.0,0.00027706,2]
[391334729,1760541039124,-151.0,0.00027706,30]
[391334730,1760541039135,-151.0,0.00027706,30]
[391334731,1760541039149,-151.0,0.00027706,30]
[391334732,1760541039160,-166.739884,0.00027706,30]
[391334733,1760541039169,-150.93,0.00027806,15]
[391334734,1760541039179,-500.0,0.00027854,2]
[391334735,1760541039190,-150.93,0.00027906,15]
[391334736,1760541039201,-153.0,0.00027952,2]
[391334737,1760541039211,-153.0,0.00027952,2]
[391334738,1760541039222,-153.0,0.00027952,2]
[391334739,1760541039232,-153.0,0.00027952,2]
[391334740,1760541039242,-153.0,0.00027952,2]
[391334741,1760541039251,-153.0,0.00027952,2]
[391334742,1760541039262,-349.0,0.00027952,2]
[391334743,1760541039271,-349.0,0.00027952,2]
[391334744,1760541039281,-349.0,0.00027952,2]
[391334745,1760541039291,-349.0,0.00027952,2]
[391334746,1760541039300,-349.0,0.00027952,2]
[391334747,1760541039310,-349.0,0.00027952,2]
[391334748,1760541039320,-349.0,0.00027952,2]
[391334749,1760541039330,-151.0,0.00027952,30]
[391334750,1760541039339,-151.0,0.00027952,30]
[391334751,1760541039350,-151.0,0.00027952,30]
[391334752,1760541039360,-151.0,0.00027952,30]
[391334753,1760541039370,-151.0,0.00027952,30]
[391334754,1760541039379,-151.0,0.00027952,30]
[391334755,1760541039390,-151.0,0.00027952,30]
[391334756,1760541039400,-47.13625297,0.00027952,30]
[391334757,1760541039413,-103.86374703,0.00027952,30]
[391334758,1760541039424,-151.0,0.00027952,30]
[391334759,1760541039435,-151.0,0.00027952,30]
[391334760,1760541039446,-151.0,0.00027952,30]
[391334761,1760541039456,-151.0,0.00027952,30]
[391334762,1760541039466,-165.824087,0.00027952,30]
[391334763,1760541039477,-151.0,0.00027952,30]
[391334764,1760541039487,-151.0,0.00027952,30]
[391334765,1760541039497,-151.0,0.00027952,30]
[391334766,1760541039626,-151.0,0.00027952,30]
[391334767,1760541039644,-970.44182947,0.00027952,30]
[391334768,1760541039656,-123.44424553,0.00027952,30]
[391334769,1760541039666,-1093.886075,0.00027952,30]
[391334770,1760541039675,-1093.886075,0.00027952,30]
[391334771,1760541039685,-1093.886075,0.00027952,30]
[391334772,1760541039694,-531.46943,0.00027952,30]
[391334773,1760541039704,-531.46943,0.00027952,30]
[391334774,1760541039713,-531.46943,0.00027952,30]
[391334775,1760541039723,-293.59404393,0.00027952,30]
[391334826,1760541043296,-237.87538607,0.00027952,30]
[391334827,1760541043306,-176.791124,0.00027952,30]
[391334828,1760541043316,-176.791124,0.00027952,30]
[391334829,1760541043328,-176.791124,0.00027952,30]
[391334830,1760541043347,-176.791124,0.00027952,30]
[391334831,1760541043361,-151.0,0.00027952,30]
[391334832,1760541043371,-151.0,0.00027952,30]
[391334833,1760541043380,-90.69740084,0.00027952,30]
[391334834,1760541043391,-60.30259916,0.00027952,30]
[391334835,1760541043400,-151.0,0.00027952,2]
[391334836,1760541043409,-151.0,0.00027952,2]
[391334837,1760541043419,-151.0,0.00027952,30]
[391334838,1760541043428,-153.0,0.00027955,2]
[391334839,1760541043437,-153.0,0.00027955,2]
[391334840,1760541043446,-150.93,0.00028006,15]
[391334841,1760541043456,-209.64963876,0.00028111,2]
[391334842,1760541043465,-500.0,0.00028128,2]
[391334843,1760541043475,-150.0,0.00028151,2]
[391334844,1760541043486,-179.204871,0.00028191,60]
[391334845,1760541043495,-500.0,0.00028402,2]
[391334846,1760541043505,-217.4066754,0.00028659,2]
[391334847,1760541043514,-500.0,0.00028676,2]
[391334848,1760541043523,-500.0,0.00028817,7]
[391334849,1760541043532,-500.0,0.0002895,2]
[391334850,1760541043542,-225.45072239,0.00029207,2]
[391334851,1760541043551,-500.0,0.00029224,2]
[391334852,1760541043560,-153.04,0.00029277,2]
[391334853,1760541043569,-500.0,0.00029498,2]
[391334854,1760541043578,-587.0,0.00029564,2]
[391334855,1760541043587,-500.0,0.00029639,7]
[391334856,1760541043596,-168.0,0.00029694,2]
[391334857,1760541043608,-168.0,0.0002975,2]
[391334858,1760541043617,-233.79239912,0.00029755,2]
[391334859,1760541043626,-500.0,0.00029756,5]
[391334860,1760541043636,-1834.13249834,0.000299,2]
[391334861,1760541043646,-14705.4434825,0.0002995,2]
[391334862,1760541043655,-151.0,0.0002995,2]
[391334863,1760541043664,-151.0,0.0002995,2]
[391334864,1760541043673,-151.0,0.0002995,30]
[391334865,1760541043683,-151.0,0.00029959,30]
[391334866,1760541043692,-151.0,0.00029959,30]
[391334867,1760541043701,-151.0,0.00029959,30]
[391334868,1760541043710,-151.0,0.00029959,30]
[391334869,1760541043720,-2999.0,0.00029959,2]
[391334870,1760541043730,-151.0,0.0002996,30]
[391334871,1760541043740,-151.0,0.0002996,2]
[391334872,1760541043750,-151.0,0.0002996,2]
[391334873,1760541043760,-151.0,0.0002996,2]
[391334874,1760541043769,-275.03032,0.0002996,2]
[391334875,1760541043779,-151.0,0.0002996,30]
[391334876,1760541043789,-151.0,0.0002996,30]
[391334877,1760541043798,-151.0,0.0002996,30]
[391334878,1760541043807,-151.0,0.0002996,30]
[391334879,1760541043817,-151.0,0.0002996,30]
[391334880,1760541043826,-151.0,0.0002996,30]
[391334881,1760541043835,-151.0,0.0002996,30]
[391334882,1760541043844,-151.0,0.0002996,30]
[391334883,1760541043856,-151.0,0.0002996,30]
[391334884,1760541043866,-151.0,0.0002996,30]
[391334885,1760541043876,-151.386237,0.0002996,30]
[391334886,1760541043886,-151.0,0.0002996,30]
[391334887,1760541043895,-151.0,0.0002996,30]
[391334888,1760541043905,-163.254956,0.0002996,30]
[391334889,1760541043914,-151.0,0.0002996,30]
[391334890,1760541043923,-151.0,0.0002996,30]
[391334891,1760541043932,-1093.886075,0.0002996,30]
[391334892,1760541043941,-1093.886075,0.0002996,30]
[391334893,1760541043951,-1093.886075,0.0002996,30]
[391334894,1760541043960,-1093.886075,0.0002996,30]
[391334895,1760541043970,-531.46943,0.0002996,30]
[391334896,1760541043979,-531.46943,0.0002996,30]
[391334897,1760541043989,-531.46943,0.0002996,30]
[391334898,1760541043999,-531.46943,0.0002996,30]
[391334899,1760541044010,-176.791124,0.0002996,30]
[391334900,1760541044020,-176.791124,0.0002996,30]
[391334901,1760541044029,-176.791124,0.0002996,30]
[391334902,1760541044039,-176.791124,0.0002996,30]
[391334903,1760541044049,-151.0,0.0002996,30]
[391334904,1760541044059,-151.0,0.0002996,30]
[391334905,1760541044069,-151.0,0.0002997,30]
[391334906,1760541044079,-151.0,0.0002997,30]
[391334907,1760541044089,-151.0,0.0002997,2]
[391334908,1760541044099,-151.0,0.0002997,2]
[391334909,1760541044115,-151.0,0.0002997,2]
[391334910,1760541044124,-151.0,0.0002997,30]
[391334911,1760541044140,-151.0,0.0002997,30]
[391334912,1760541044149,-151.0,0.0002997,30]
[391334913,1760541044160,-151.0,0.0002997,30]
[391334914,1760541044170,-151.0,0.0002997,30]
[391334915,1760541044181,-1000.0,0.0002997,2]
[391334916,1760541044191,-1000.0,0.0002997,2]
[391334917,1760541044201,-1000.0,0.0002997,2]
[391334918,1760541044210,-1000.0,0.0002997,2]
[391334919,1760541044220,-1000.0,0.0002997,2]
[391334920,1760541044229,-1000.0,0.0002997,2]
[391334921,1760541044238,-1000.0,0.0002997,2]
[391334922,1760541044247,-1000.0,0.0002997,2]
[391334923,1760541044257,-1000.0,0.0002997,2]
[391334924,1760541044266,-1000.0,0.0002997,2]
[391334925,1760541044275,-1000.0,0.0002997,2]
[391334926,1760541044284,-1000.0,0.0002997,2]
[391334927,1760541044294,-1000.0,0.0002997,2]
[391334928,1760541044303,-1000.0,0.0002997,2]
[391334929,1760541044313,-1000.0,0.0002997,2]
[391334930,1760541044322,-1000.0,0.0002997,2]
[391334931,1760541044332,-589.079368,0.0002997,2]
[391334932,1760541044341,-151.0,0.0002997,30]
[391334933,1760541044350,-151.0,0.0002997,30]
[391334934,1760541044361,-151.0,0.0002997,30]
[391334935,1760541044371,-188.254204,0.0002997,30]
[391334936,1760541044381,-1093.886075,0.0002997,30]
[391334937,1760541044390,-1093.886075,0.0002997,30]
[391334938,1760541044400,-1093.886075,0.0002997,30]
[391334939,1760541044409,-1093.886075,0.0002997,30]
[391334940,1760541044419,-531.46943,0.0002997,30]
[391334941,1760541044428,-531.46943,0.0002997,30]
[391334942,1760541044437,-531.46943,0.0002997,30]
[391334943,1760541044446,-531.46943,0.0002997,30]
[391334944,1760541044456,-176.791124,0.0002997,30]
[391334945,1760541044465,-176.791124,0.0002997,30]
[391334946,1760541044474,-176.791124,0.0002997,30]
[391334947,1760541044483,-176.791124,0.0002997,30]
[391334948,1760541044492,-151.0,0.0002997,30]
[391334949,1760541044502,-151.0,0.0002997,30]
[391334950,1760541044511,-151.0,0.0002997,2]
[391334951,1760541044521,-151.0,0.0002997,2]
[391334952,1760541044531,-151.0,0.0002997,30]
[391334953,1760541044540,-151.0,0.0002998,30]
[391334954,1760541044550,-284.802577,0.0002998,30]
[391334955,1760541044559,-151.0,0.0002998,2]
[391334956,1760541044568,-301.191611,0.0002998,2]
[391334957,1760541044577,-151.0,0.0002998,30]
[391334958,1760541044586,-3953.8,0.0002998,10]
[391334959,1760541044595,-14705.4434825,0.0002998,2]
[391334960,1760541044606,-6868.4205267,0.0002999,2]
[391334961,1760541044615,-151.0,0.0002999,30]
[391334962,1760541044625,-151.0,0.0002999,2]
[391334963,1760541044635,-151.0,0.0002999,2]
[391334964,1760541044644,-151.0,0.0002999,2]
[391334965,1760541044654,-229.493986,0.0002999,30]
[391334966,1760541044664,-151.0,0.0002999,30]
[391334967,1760541044673,-151.0,0.0002999,30]
[391334968,1760541044682,-151.0,0.0002999,30]
[391334969,1760541044692,-151.0,0.0002999,30]
[391334970,1760541044701,-151.657196,0.0002999,30]
[391334971,1760541044710,-151.0,0.0002999,30]
[391334972,1760541044719,-151.0,0.0002999,30]
[391334973,1760541044728,-151.0,0.0002999,30]
[391334974,1760541044737,-151.0,0.0002999,30]
[391334975,1760541044746,-151.0,0.0002999,30]
[391334976,1760541044756,-1093.886075,0.0002999,30]
[391334977,1760541044765,-1093.886075,0.0002999,30]
[391334978,1760541044775,-1093.886075,0.0002999,30]
[391334979,1760541044784,-1093.886075,0.0002999,30]
[391334980,1760541044793,-1093.886075,0.0002999,30]
[391334981,1760541044803,-1093.886075,0.0002999,30]
[391334982,1760541044812,-1093.886075,0.0002999,30]
[391334983,1760541044821,-1093.886071,0.0002999,30]
[391334984,1760541044831,-531.46943,0.0002999,30]
[391334985,1760541044841,-531.46943,0.0002999,30]
[391334986,1760541044851,-531.46943,0.0002999,30]
[391334987,1760541044864,-531.46943,0.0002999,30]
[391334988,1760541044873,-531.46943,0.0002999,30]
[391334989,1760541044883,-531.46943,0.0002999,30]
[391334990,1760541044893,-531.46943,0.0002999,30]
[391334991,1760541044903,-531.469426,0.0002999,30]
[391334992,1760541044912,-29410.886965,0.0002999,2]
[391334993,1760541044922,-176.791124,0.0002999,30]
[391334994,1760541044932,-176.791124,0.0002999,30]
[391334995,1760541044941,-176.791124,0.0002999,30]
[391334996,1760541044950,-176.791124,0.0002999,30]
[391334997,1760541044960,-176.791124,0.0002999,30]
[391334998,1760541044969,-176.791124,0.0002999,30]
[391334999,1760541044978,-176.791124,0.0002999,30]
[391335000,1760541044987,-176.79112,0.0002999,30]
[391335001,1760541044996,-151.0,0.0002999,30]
[391335002,1760541045005,-151.0,0.0002999,30]
[391335003,1760541045015,-151.0,0.0002999,30]
[391335004,1760541045024,-151.0,0.0002999,30]
[391335005,1760541045033,-151.0,0.0002999,2]
[391335006,1760541045042,-48258.0,0.0003,7]
[391335007,1760541045051,-8504.62,0.0003,7]
[391335008,1760541045060,-1863.97963213,0.0003,10]
[391335012,1760541046315,-2012.20257968,0.000299,2]
[391335013,1760541046325,-1316.79742032,0.0003,10]
[391335042,1760541354016,245.933486,0.00013699,2]
[391335043,1760541550904,1000.0,0.00018905,2]
[391335046,1760541574673,1000.0,0.00018905,2]
[391335051,1760541969383,178.0,8.3e-07,2]
[391335052,1760541970566,178.0,8.3e-07,2]
[391335053,1760541984407,300.0,0.000189,2]
[391335054,1760541999398,300.0,0.000189,2]
[391335056,1760542049206,300.0,0.000189,2]
[391335059,1760542062516,300.0,0.000189,2]
[391335060,1760542062581,302.54622906,0.000189,2]
[391335061,1760542072557,9632.53572069,0.00018,2]
[391335062,1760542075503,300.0,0.000189,2]
[391335063,1760542088098,300.0,0.000189,2]
[391335064,1760542100410,300.0,0.000189,2]
[391335065,1760542100664,-369.21032336,0.00018989,2]
[391335066,1760542105636,300.0,0.000189,2]
[391335067,1760542106276,-152.89059503,0.00018989,2]
[391335068,1760542108328,-226.57070371,0.00018989,2]
[391335069,1760542110505,79884.16906157,0.00017,2]
[391335070,1760542110871,-257.34521277,0.00018989,2]
[391335071,1760542111606,20577.27232054,0.000185,2]
[391335072,1760542111928,560.14859155,0.00018,5]
[391335073,1760542114683,588.07158011,0.000149,2]
[391335074,1760542114967,1000.0,0.0001,2]
[391335075,1760542115529,5013.1353708,0.00018,2]
[391335079,1760542127172,7129.6824356,0.00018873,2]
[391335080,1760542144700,5000.0,0.00018905,2]
[391335081,1760542166913,5000.0,0.00018905,2]
[391335082,1760542175613,5000.0,0.00018905,2]
[391335083,1760542190552,5000.0,0.00018905,2]
[391335084,1760542198647,5000.0,0.00018905,2]
[391335085,1760542213984,488.16230027,0.00018905,2]
[391335086,1760542214016,4511.83769973,0.00018905,2]
[391335087,1760542221824,5000.0,0.00018905,2]
[391335120,1760542232439,-200.0,0.00018989,2]
[391335122,1760542232451,-115.39956815,0.00018989,2]
[391335124,1760542232471,-678.51505841,0.00018989,2]
[391335126,1760542232481,-153.94844058,0.00019089,2]
[391335128,1760542232490,-2609.01324841,0.00019205,5]
[391335133,1760542232530,-473.98911195,0.00019205,5]
[391335135,1760542232539,-304.18,0.00019432,2]
[391335137,1760542232549,-774.42870236,0.000199,2]
[391335140,1760542232558,-215.9956341,0.00019999,2]
[391335142,1760542232570,-84.0043659,0.00019999,2]
[391335144,1760542232579,-300.0,0.00019999,2]
[391335146,1760542232587,-300.0,0.00019999,2]
[391335148,1760542232596,-148.70407716,0.00019999,2]
[391335298,1760542240588,-5000.0,0.00019799,2]
[391335300,1760542240598,-1051.29592284,0.00019999,2]
[391335302,1760542240607,-300.0,0.00019999,2]
[391335304,1760542240616,-300.0,0.00019999,2]
[391335305,1760542240625,-5248.40096563,0.0002,20]
[391335842,1760542246415,-4349.49539197,0.00019986,2]
[391335844,1760542246425,-21201.1743058,0.0002,20]
[391335846,1760542246435,-207.0,0.0002,10]
[391335848,1760542246444,-245.933486,0.00020187,2]
[391335850,1760542246457,-608.36,0.00020358,2]
[391335852,1760542246467,-1373.80817045,0.0002061,2]
[391335854,1760542246477,-912.55,0.00021283,2]
[391335856,1760542246486,-774.42870236,0.00021394,2]
[391335858,1760542246497,-420.0,0.00021777,2]
[391335860,1760542246507,-300.0,0.00021777,2]
[391335862,1760542246516,-300.0,0.00021777,2]
[391335864,1760542246526,-300.0,0.00021777,2]
[391335865,1760542246536,-1332.0,0.00021881,2]
[391335867,1760542246546,-1216.73,0.00022208,2]
[391335869,1760542246555,-774.42870236,0.00022888,2]
[391335871,1760542246564,-477.87403028,0.00022992,2]
[391335873,1760542246573,-262.28698076,0.00022999,2]
[391335876,1760542246584,-471.34954238,0.00022999,2]
[391335878,1760542246594,-164.903444,0.00022999,2]
[391335879,1760542246603,-630.0,0.00022999,2]
[391335881,1760542246612,-263.03162081,0.00022999,2]
[391335883,1760542246622,-353.04535772,0.00022999,2]
[391335886,1760542246631,-500.0,0.00022999,2]
[391335888,1760542246641,-400.0,0.00022999,2]
[391335889,1760542246651,-285.02549982,0.00022999,2]
[391335892,1760542246661,-61754.81468835,0.00023,2]
[391335893,1760542246670,-1520.91,0.00023134,2]
[391335895,1760542246680,-5180.33060438,0.00023325,2]
[391335897,1760542246690,-587.0,0.00023712,2]
[391335899,1760542246699,-1825.09,0.00024059,2]
[391335901,1760542246708,-774.42870236,0.00024382,2]
[391335903,1760542246718,-285.48548225,0.00024899,2]
[391335905,1760542246727,-181.628734,0.00024899,2]
[391335907,1760542246736,-3898.31271965,0.000249,30]
[391335909,1760542246746,-2129.27,0.00024985,2]
[391335912,1760542246763,-239.0,0.00025,3]
[391335915,1760542246775,-823.0,0.0002582,2]
[391335917,1760542246787,-774.42870236,0.00025876,2]
[391335919,1760542246799,-2433.45,0.0002591,2]
[391335921,1760542246811,-245.933486,0.00026676,2]
[391335924,1760542246823,-2737.64,0.00026835,2]
[391335926,1760542246835,-204.98640755,0.000269,2]
[391335928,1760542246847,-240.0,0.000269,2]
[391335930,1760542246858,-177.90835512,0.00027,2]
[391335932,1760542246868,-200.0,0.00027161,15]
[391335934,1760542246878,-240.0,0.000272,2]
[391335937,1760542246890,-774.42870236,0.0002737,2]
[391335939,1760542246902,-411.0,0.0002753,2]
[391335941,1760542246913,-419.512,0.0002753,2]
[391335943,1760542246924,-1909.58462499,0.0002754,2]
[391335945,1760542246934,-3041.82,0.00027761,2]
[391335947,1760542246946,-1084.0,0.00028115,2]
[391335949,1760542246957,-500.0,0.00028817,7]
[391335951,1760542246968,-774.42870236,0.00028864,2]
[391335954,1760542246978,-386.57,0.0002899,3]
[391335956,1760542246989,-193.28,0.0002899,3]
[391335958,1760542247000,-579.87,0.0002899,3]
[391335960,1760542247011,-3370.47,0.0002899,10]
[391335962,1760542247022,-2808.72,0.0002899,10]
[391335964,1760542247032,-2340.6,0.0002899,10]
[391335966,1760542247043,-52634.6209342,0.00029,120]
[391335968,1760542247054,-151.0,0.00029,30]
[391335971,1760542247064,-151.0,0.00029,30]
[391335973,1760542247077,-151.0,0.00029,30]
[391335975,1760542247089,-151.0,0.00029,30]
[391335977,1760542247100,-151.0,0.00029,30]
[391335979,1760542247112,-151.0,0.00029,30]
[391335981,1760542247122,-151.0,0.00029,30]
[391335984,1760542247134,-151.0,0.00029,30]
[391335986,1760542247144,-151.0,0.00029,30]
[391335988,1760542247153,-257.988073,0.00029,30]
[391335990,1760542247164,-151.0,0.00029,30]
[391335992,1760542247174,-151.0,0.00029,30]
[391335994,1760542247186,-151.0,0.00029,30]
[391335996,1760542247198,-151.0,0.00029,30]
[391335998,1760542247210,-151.0,0.00029,30]
[391336000,1760542247221,-151.0,0.00029,30]
[391336003,1760542247233,-1356.561751,0.0002939,2]
[391336005,1760542247244,-622.16440369,0.00029492,31]
[391336007,1760542247254,-1356.561752,0.00029603,2]
[391336009,1760542247268,-368.95347668,0.00029999,2]
[391336012,1760542247280,-33415.92294755,0.0003,10]
[391336014,1760542247291,-1800.0,0.0003,60]
[391336016,1760542247301,-1317.57,0.0003,2]
[391336018,1760542247312,-402.51317252,0.0003,10]
[391336020,1760542247322,-159.413877,0.0003,30]
[391336022,1760542247334,-151.0,0.0003,30]
[391336024,1760542247345,-151.0,0.0003,30]
[391336026,1760542247355,-151.0,0.0003,30]
[391336028,1760542247365,-151.0,0.0003,30]
[391336030,1760542247374,-162.533862,0.0003,30]
[391336033,1760542247385,-151.0,0.0003,30]
[391336035,1760542247394,-151.0,0.0003,30]
[391336037,1760542247404,-151.0,0.0003,30]
[391336039,1760542247415,-151.0,0.0003,30]
[391336041,1760542247425,-151.0,0.0003,30]
[391336043,1760542247435,-151.0,0.0003,30]
[391336045,1760542247446,-151.0,0.0003,30]
[391336047,1760542247460,-222634.75974161,0.00030158,4]
[391336787,1760542260193,205.25250619,0.00018889,2]
[391336788,1760542261161,5000.0,0.00018905,2]
[391336789,1760542285028,5000.0,0.00018905,2]
[391336790,1760542307669,1208.67430442,0.00018905,2]
[391336791,1760542314824,218.42326152,0.00018889,2]
[391336792,1760542442388,162.86788866,0.00018889,2]
[391336800,1760542680001,386.05,0.00015135,2]
[391336801,1760542680296,386.05,0.00015135,2]
[391336802,1760542723373,302.54622906,0.000189,2]
[391336803,1760542835290,1500.0,0.00030488,60]
[391336804,1760542876964,1000.0,0.00030488,60]
[391336805,1760542877223,1000.0,0.00030488,60]
[391336806,1760542877546,1000.0,0.00030488,60]
[391336807,1760542877849,1000.0,0.00030488,60]
[391336808,1760542878084,1000.0,0.00030488,60]
[391336809,1760542878411,209.50356302,0.00030488,60]
[391336871,1760543432644,-164.72928883,0.00019,2]
[391336873,1760543432654,-150.0,0.000191,2]
[391336875,1760543432663,-172.5,0.000197,2]
[391336877,1760543432674,-195.0,0.000203,2]
[391336879,1760543432683,-217.5,0.000209,2]
[391336881,1760543432692,-240.0,0.000215,2]
[391336883,1760543432701,-262.5,0.000221,2]
[391336885,1760543432711,-285.0,0.000227,2]
[391336887,1760543432720,-217.65989646,0.000233,2]
[391336889,1760543432730,-212.0,0.00024685,14]
[391336891,1760543432741,-150.0,0.00024819,2]
[391336893,1760543432762,-192.88,0.00026002,2]
[391336895,1760543432782,-300.0,0.00026846,2]
[391336897,1760543432800,-300.0,0.00026846,2]
[391336899,1760543432809,-300.0,0.00026846,2]
[391336901,1760543432819,-1200.0,0.00026846,2]
[391336903,1760543432829,-319.0,0.00026847,2]
[391336905,1760543432840,-300.0,0.00026848,2]
[391336908,1760543432850,-257.042967,0.00027032,2]
[391336911,1760543432860,-677.130978,0.00027051,2]
[391336913,1760543432869,-289.31,0.00027183,2]
[391336914,1760543432878,-411.0,0.00027491,2]
[391336915,1760543432888,-419.512,0.00027491,2]
[391336916,1760543432897,-202.169372,0.00028279,2]
[391336917,1760543432906,-168.3888056,0.00028279,2]
[391336918,1760543432915,-440.0,0.00028296,2]
[391336919,1760543432925,-194.51,0.00028296,2]
[391336920,1760543432935,-194.51,0.00028296,2]
[391336921,1760543432945,-194.51,0.00028296,2]
[391336922,1760543432954,-194.51,0.00028296,2]
[391336923,1760543432964,-194.51,0.00028296,2]
[391336924,1760543432973,-194.51,0.00028296,2]
[391336925,1760543432983,-194.48,0.00028296,2]
[391336926,1760543432992,-627.0,0.0002835,2]
[391336927,1760543433001,-385.75,0.00028365,2]
[391336928,1760543433010,-627.0,0.00028436,2]
[391336929,1760543433020,-627.0,0.00028559,7]
[391336930,1760543433031,-500.0,0.00028817,7]
[391336931,1760543433040,-1000.0,0.00028821,5]
[391336932,1760543433050,-209.64963876,0.00028827,2]
[391336933,1760543433059,-627.0,0.00028882,2]
[391336934,1760543433069,-627.0,0.00028949,7]
[391336935,1760543433081,-500.0,0.00029,14]
[391336936,1760543433091,-627.0,0.00029027,2]
[391336937,1760543433100,-152.84734403,0.00029041,30]
[391336938,1760543433110,-217.4066754,0.00029375,2]
[391336939,1760543433119,-152.84734403,0.00029425,30]
[391336940,1760543433129,-627.0,0.00029461,2]
[391336941,1760543433138,-627.0,0.000295,7]
[391336942,1760543433148,-784.3468846,0.00029507,30]
[391336943,1760543433158,-553.848299,0.00029534,30]
[391336944,1760543433168,-330.36682553,0.00029536,32]
[391336945,1760543433178,-482.19,0.00029547,2]
[391336946,1760543433187,-300.0,0.00029569,30]
[391336947,1760543433197,-300.0,0.00029569,30]
[391336948,1760543433206,-300.0,0.00029569,30]
[391336949,1760543433216,-300.0,0.00029569,30]
[391336950,1760543433225,-1384.53905512,0.00029582,2]
[391336951,1760543433235,-588.9479418,0.00029644,30]
[391336952,1760543433244,-588.9479418,0.00029644,30]
[391336953,1760543433253,-588.9479418,0.00029644,30]
[391336954,1760543433263,-588.9479418,0.00029644,30]
[391336955,1760543433272,-627.0,0.00029681,2]
[391336956,1760543433281,-627.0,0.00029711,2]
[391336957,1760543433291,-1384.53905512,0.00029714,2]
[391336958,1760543433301,-155.67809,0.00029716,14]
[391336959,1760543433310,-155.599072,0.00029716,14]
[391336960,1760543433319,-627.0,0.00029736,2]
[391336961,1760543433331,-627.0,0.00029766,7]
[391336962,1760543433341,-152.84734403,0.00029781,30]
[391336963,1760543433351,-156.77318902,0.00029796,2]
[391336964,1760543433362,-155.67809,0.0002982,2]
[391336965,1760543433372,-155.599072,0.0002982,2]
[391336966,1760543433383,-627.0,0.00029873,2]
[391336967,1760543433393,-627.0,0.00029896,2]
[391336968,1760543433402,-160.0,0.000299,2]
[391336969,1760543433414,-156.773189,0.00029914,2]
[391336970,1760543433424,-225.45072239,0.00029923,2]